Workbook

Sheet NSU
B1: Jutta Herrala | E1: 21.9.1999 Vimpeli
B2: SUPERPESIS | E2: Runkosarja | I2: Kärkilyönnit (KL), pesänvälit | P2: Ylempi loppusarja | U2: Alempi loppusarja | AB2: Arvo-ottelut ja mitalit
B3: Vuosi | C3: Sija | D3: Seura | E3: OTT | F3: KUN | G3: LÖI | H3: TOI | I3: KL | J3: 0 > 1 | K3: 1 > 2 | L3: 2 > 3 | M3: 3 > k | N3: KL-% | P3: OTT | Q3: KUN | R3: LÖI | S3: TOI | T3: KL | U3: OTT | V3: KUN | W3: LÖI | X3: TOI | Y3: KL | Z3: IL | AA3: LL | AB3: Halli | AC3: K | AD3: H | AE3: P
B4: 2012 | C4: 2. | D4: ViVe | F4: suomensarja
B5: 2013 | C5: 17. | D5: ViVe | F5: tyttöjen superpesis
B6: 2014 | C6: 17. | D6: ViVe | F6: tyttöjen superpesis
B7: 2015 | C7: 6. | D7: LaVe | F7: ykköspesis
B8: 2016 | C8: 4. | D8: ViVe | F8: suomensarja
B9: 2016 | C9: 2. | D9: LaVe | F9: ykköspesis
B10: 2017 | C10: 1. | D10: ViVe | F10: suomensarja
B11: 2017 | C11: 11. | D11: Mailattaret | F11: ykköspesis
B12: 2018 | C12: 3. | D12: ViVe | F12: suomensarja
B13: 2018 | C13: 11. | D13: LaVe | E13: 13 | F13: 0 | G13: 3 | H13: 1 | I13: 28 | J13: 3 | K13: 14 | L13: 8 | M13: 3 | N13: 46.7 % | O13: 60
B14: 2019 | C14: 11. | D14: LaVe | E14: 18 | F14: 0 | G14: 8 | H14: 0 | I14: 48 | J14: 13 | K14: 12 | L14: 15 | M14: 8 | N14: 45.3 % | O14: 106
B15: 2020 | C15: 6. | D15: LaVe | F15: ykköspesis
B16: 2021 | C16: 4. | D16: LaVe | F16: ykköspesis
B17: 2022 | C17: 5. | D17: VePe | F17: maakuntasarja
B18: 2023 | C18: 2. | D18: AA | F18: suomensarja
B19: Yhteensä | E19: =SUM(E4:E18) -> 31 | F19: 0 | G19: 11 | H19: 1 | I19: 76 | J19: 16 | K19: 26 | L19: 23 | M19: 11 | N19: =PRODUCT(I19/O19) -> 45.8 % | O19: =SUM(O1:O18) -> 166 | P19: =SUM(P4:P18) -> 0 | Q19: 0 | R19: 0 | S19: 0 | T19: 0 | U19: 0 | V19: 0 | W19: 0 | X19: 0 | Y19: 0 | Z19: 0 | AA19: 0 | AB19: 0 | AC19: 0 | AD19: 0 | AE19: 0
B20: Pesispörssi | D20: =SUM(F19:H19)+((I19-F19-G19)/3)+(E19/3)+(Z19*25)+(AA19*25)+(AB19*10)+(AC19*25)+(AD19*20)+(AE19*15) -> 44.0
B22: URA SUPERISSA | E22: OTT | F22: KUN | G22: LÖI | H22: TOI | I22: KL | K22: ka/L | L22: ka/T | M22: ka/KL | N22: KL - % | P22: ENSIMMÄISET
B23: Runkosarja | E23: =PRODUCT(E19) -> 31 | F23: =PRODUCT(F19) -> 0 | G23: =PRODUCT(G19) -> 11 | H23: =PRODUCT(H19) -> 1 | I23: =PRODUCT(I19) -> 76 | K23: =PRODUCT((F23+G23)/E23) -> 0.35 | L23: =PRODUCT(H23/E23) -> 0.03 | M23: =PRODUCT(I23/E23) -> 2.45 | N23: =PRODUCT(N19) -> 45.8 % | O23: =PRODUCT(O19) -> 166 | P23: Ottelu | R23: 10.05. 2018 LaVe - KeKi 2-1 (6-4, 1-3, 1-0) | Z23: 1. ottelu | AC23: 18 v 7 kk 19 pv
B24: Ylempi loppusarja | P24: Lyöty | R24: 20.05. 2018 KeKi - LaVe 2-0 (6-3, 9-1) | Z24: 3. ottelu | AC24: 18 v 7 kk 29 pv
B25: Alempi loppusarja | P25: Tuotu | R25: 09.06. 2018 LaVe - Pesä Ysit 0-2 (1-8, 0-5) | Z25: 6. ottelu | AC25: 18 v 8 kk 19 pv
B26: KAIKKI | E26: =SUM(E23:E25) -> 31 | F26: =SUM(F23:F25) -> 0 | G26: =SUM(G23:G25) -> 11 | H26: =SUM(H23:H25) -> 1 | I26: =SUM(I23:I25) -> 76 | K26: =PRODUCT((F26+G26)/E26) -> 0.35 | L26: =PRODUCT(H26/E26) -> 0.03 | M26: =PRODUCT(I26/E26) -> 2.45 | N26: =PRODUCT(I26/O26) -> 45.8 % | O26: =SUM(O23:O25) -> 166 | P26: Kunnari
B28: Seurat | D28: ViVe = Vimpelin Veto (1934), kasvattajaseura | L28: Mailattaret (2015) | R28: AA = Alajärven Ankkurit (1944)
D29: LaVe = Lappajärven Veikot (1911) | L29: VePe = Veteli Pesis (2001)

Sheet NYP,NSS
B1: Jutta Herrala | E1: 21.9.1999 Vimpeli
B2: YKKÖSPESIS | E2: Runkosarja | L2: Runkosarja TOP-10 | Q2: Jatkosarjat | X2: SUOMENSARJA | AA2: Runkosarja | AH2: Runkosarja TOP-10 | AM2: Jatkosarjat
B3: Vuosi | C3: Sija | D3: Seura | E3: OTT | F3: KUN | G3: LÖI | H3: TOI | I3: KL | J3: KL-% | L3: LÖI | M3: TOI | N3: L+T | O3: KL | Q3: OTT | R3: KUN | S3: LÖI | T3: TOI | U3: KL | V3: KL-% | X3: Vuosi | Y3: Sija | Z3: Seura | AA3: OTT | AB3: KUN | AC3: LÖI | AD3: TOI | AE3: KL | AF3: KL-% | AH3: LÖI | AI3: TOI | AJ3: L+T | AK3: KL | AM3: OTT | AN3: KUN | AO3: LÖI | AP3: TOI | AQ3: KL | AR3: KL-%
X4: 2012 | Y4: 2. | Z4: ViVe | AA4: 3 | AB4: 0 | AC4: 1 | AD4: 1 | AE4: 1 | AF4: 50.0 % | AG4: 2 | AM4: 1 | AN4: 0 | AO4: 0 | AP4: 1 | AQ4: 0 | AR4: 0.0 % | AS4: 6
B5: 2013 | D5: ViVe | F5: tyttöjen supepesis
B6: 2014 | D6: ViVe | F6: tyttöjen supepesis
B7: 2015 | C7: 6. | D7: LaVe | E7: 6 | F7: 0 | G7: 1 | H7: 0 | I7: 4 | J7: 57.1 % | K7: 7
B8: 2016 | C8: 2. | D8: LaVe | E8: 2 | F8: 0 | G8: 0 | H8: 1 | I8: 6 | J8: 75.0 % | K8: 8 | X8: 2016 | Y8: 4. | Z8: ViVe | AA8: 14 | AB8: 1 | AC8: 42 | AD8: 21 | AE8: 99 | AF8: 70.7 % | AG8: 140 | AM8: 2 | AN8: 0 | AO8: 3 | AP8: 0 | AQ8: 8 | AR8: 47.1 % | AS8: 17
B9: 2017 | C9: 11. | D9: Mailattaret | E9: 18 | F9: 1 | G9: 9 | H9: 16 | I9: 62 | J9: 44.6 % | K9: 139 | X9: 2017 | Y9: 1. | Z9: ViVe | AA9: 15 | AB9: 2 | AC9: 25 | AD9: 23 | AE9: 76 | AF9: 61.8 % | AG9: 123 | AM9: 7 | AN9: 0 | AO9: 11 | AP9: 4 | AQ9: 25 | AR9: 44.6 % | AS9: 56
B10: 2020 | C10: 6. | D10: LaVe | E10: 13 | F10: 0 | G10: 17 | H10: 6 | I10: 57 | J10: 53.8 % | K10: 106
B11: 2021 | C11: 4. | D11: LaVe | E11: 11 | F11: 0 | G11: 9 | H11: 4 | I11: 40 | J11: 63.5 % | K11: 63 | Q11: 2 | R11: 0 | S11: 0 | T11: 0 | U11: 5 | V11: 71.4 % | W11: 7
B13: YHTEENSÄ | E13: =SUM(E4:E12) -> 50 | F13: =SUM(F4:F12) -> 1 | G13: =SUM(G4:G12) -> 36 | H13: =SUM(H4:H12) -> 27 | I13: =SUM(I4:I12) -> 169 | J13: =PRODUCT(I13/K13) -> 52.3 % | K13: =SUM(K4:K12) -> 323.0020476 | Q13: =SUM(Q4:Q12) -> 2 | R13: =SUM(R4:R12) -> 0 | S13: =SUM(S4:S12) -> 0 | T13: =SUM(T4:T12) -> 0 | U13: =SUM(U4:U12) -> 5 | V13: =PRODUCT(U13/W13) -> 71.4 % | W13: =SUM(W4:W12) -> 7 | X13: YHTEENSÄ | AA13: =SUM(AA4:AA12) -> 32 | AB13: =SUM(AB4:AB12) -> 3 | AC13: =SUM(AC4:AC12) -> 68 | AD13: =SUM(AD4:AD12) -> 45 | AE13: =SUM(AE4:AE12) -> 176 | AF13: =PRODUCT(AE13/AG13) -> 66.4 % | AG13: =SUM(AG4:AG12) -> 265 | AM13: =SUM(AM4:AM12) -> 10 | AN13: =SUM(AN4:AN12) -> 0 | AO13: =SUM(AO4:AO12) -> 14 | AP13: =SUM(AP4:AP12) -> 5 | AQ13: =SUM(AQ4:AQ12) -> 33 | AR13: =PRODUCT(AQ13/AS13) -> 41.8 % | AS13: =SUM(AS4:AS12) -> 79
B15: KAIKKI OTTELUT | E15: OTT | F15: KUN | G15: LÖI | H15: TOI | I15: KL | J15: KL-% | L15: ka/L | M15: ka/T | N15: ka/l+t | O15: ka/kl | R15: Seurat | T15: ViVe = Vimpelin Veto (1934), kasvattajaseura
B16: SUPERPESIS | E16: 31 | F16: 0 | G16: 11 | H16: 1 | I16: 76 | J16: 45.8 % | K16: =PRODUCT(I16/J16) -> 165.9388646 | L16: =PRODUCT((F16+G16)/E16) -> 0.35 | M16: =PRODUCT(H16/E16) -> 0.03 | N16: =PRODUCT((F16+G16+H16)/E16) -> 0.39 | O16: =PRODUCT(I16/E16) -> 2.45 | T16: LaVe = Lappajärven Veikot (1911)
B17: YKKÖSPESIS | E17: =PRODUCT(E13+Q13) -> 52 | F17: =PRODUCT(F13+R13) -> 1 | G17: =PRODUCT(G13+S13) -> 36 | H17: =PRODUCT(H13+T13) -> 27 | I17: =PRODUCT(I13+U13) -> 174 | J17: =PRODUCT(I17/K17) -> 52.7 % | K17: =PRODUCT(K13+W13) -> 330.0020476 | L17: =PRODUCT((F17+G17)/E17) -> 0.71 | M17: =PRODUCT(H17/E17) -> 0.52 | N17: =PRODUCT((F17+G17+H17)/E17) -> 1.23 | O17: =PRODUCT(I17/E17) -> 3.35 | T17: Mailattaret = Mailattaret (2015)
B18: SUOMENSARJA | E18: =PRODUCT(AA13+AM13) -> 42 | F18: =PRODUCT(AB13+AN13) -> 3 | G18: =PRODUCT(AC13+AO13) -> 82 | H18: =PRODUCT(AD13+AP13) -> 50 | I18: =PRODUCT(AE13+AQ13) -> 209 | J18: =PRODUCT(I18/K18) -> 60.8 % | K18: =PRODUCT(AG13+AS13) -> 344 | L18: =PRODUCT((F18+G18)/E18) -> 2.02 | M18: =PRODUCT(H18/E18) -> 1.19 | N18: =PRODUCT((F18+G18+H18)/E18) -> 3.21 | O18: =PRODUCT(I18/E18) -> 4.98
B19: YHTEENSÄ | E19: =SUM(E16:E18) -> 125 | F19: =SUM(F16:F18) -> 4 | G19: 129 | H19: 78 | I19: 459 | J19: =PRODUCT(I19/K19) -> 54.6 % | K19: =SUM(K16:K18) -> 839.9409122 | L19: =PRODUCT((F19+G19)/E19) -> 1.06 | M19: =PRODUCT(H19/E19) -> 0.62 | N19: =PRODUCT((F19+G19+H19)/E19) -> 1.69 | O19: =PRODUCT(I19/E19) -> 3.67
